bitfinex/quotes_SOLUSD_20250829
["timestamp","ask_amount","ask_price","bid_price","bid_amount"]
[1756487642373,0.69,203.42,203.32,0.14216157]
[1756487642576,7.11061969,203.39,203.34,13.73775558]
[1756487642776,7.11061969,203.36,203.35,42.18]
[1756487642986,7.11061969,203.36,203.31,39.59559401]
[1756487642987,10.68667857,203.36,203.31,39.59559401]
[1756487643285,3.57605888,203.35,203.33,20.84837527]
[1756487643580,7.11061969,203.39,203.35,13.59559401]
[1756487643759,7.11061969,203.37,203.36,42.16]
[1756487643959,10.68530812,203.37,203.36,42.16]
[1756487644263,10.68530812,203.37,203.36,42.18]
[1756487644466,3.57468843,203.37,203.36,42.18]
[1756487645284,3.57468843,203.37,203.36,49.18]
[1756487645985,14.25677055,203.37,203.36,49.18]
[1756487646186,7.14615086,203.37,203.36,49.18]
[1756487646363,14.25677055,203.37,203.36,49.18]
[1756487646698,3.57468843,203.37,203.36,49.18]
[1756487647795,3.57468843,203.37,203.36,49.08]
[1756487648561,14.94584263,203.37,203.36,7.0]
[1756487649368,7.83522294,203.37,203.36,7.0]
[1756487649611,7.14522294,203.37,203.36,7.0]
[1756487649888,0.69,203.48,203.37,13.59559401]
[1756487650105,7.1427402,203.47,203.43,7.11061969]
[1756487650262,3.57126996,203.46,203.44,42.81]
[1756487650463,7.11061969,203.5,203.44,42.12]
[1756487650464,3.57126996,203.45,203.44,42.12]
[1756487650678,3.57126996,203.47,203.44,42.12]
[1756487650878,3.57162432,203.46,203.44,42.12]
[1756487651064,3.57126996,203.45,203.39,46.7062137]
[1756487651268,3.57162432,203.44,203.4,42.12]
[1756487651493,3.57126996,203.43,203.41,7.11061969]
[1756487651794,3.57126996,203.42,203.41,13.73775558]
[1756487651965,7.11061969,203.49,203.42,13.73775558]
[1756487652174,7.14563898,203.48,203.43,42.08]
[1756487652377,7.14563898,203.47,203.43,42.77]
[1756487652576,7.14563898,203.46,203.43,42.77]
[1756487652777,0.69,203.5,203.43,42.77]
[1756487652778,3.57281636,203.45,203.44,14.42775558]
[1756487652977,7.11061969,203.51,203.44,28.53837527]
[1756487653172,7.14724322,203.5,203.44,21.42775558]
[1756487653364,14.25786291,203.49,203.44,20.73775558]
[1756487653574,7.11061969,203.46,203.44,7.0]
[1756487653891,7.14724322,203.45,203.44,7.0]
[1756487654099,7.15176856,203.45,203.44,7.0]
[1756487654783,14.26238825,203.45,203.44,7.0]
[1756487655376,14.95238825,203.45,203.44,7.0]
[1756487655690,18.17306832,203.45,203.37,41.98]
[1756487655900,7.11061969,203.38,203.32,41.98]
[1756487656188,7.15176856,203.37,203.35,7.11061969]
[1756487656363,3.57588428,203.36,203.35,20.7062137]
[1756487656563,3.57588428,203.36,203.35,42.02]
[1756487656780,3.57588428,203.37,203.35,42.02]
[1756487656975,3.57588428,203.36,203.35,42.02]
[1756487657177,3.57588428,203.38,203.35,42.02]
[1756487657379,18.54935279,203.37,203.35,42.02]
[1756487657606,7.15338614,203.36,203.35,42.02]
[1756487657902,3.57588428,203.36,203.35,42.02]
[1756487658063,7.15342946,203.36,203.35,42.02]
[1756487658486,7.15342946,203.36,203.35,49.02]
[1756487658685,7.15342946,203.36,203.35,74.70156066]
[1756487658865,7.15342946,203.36,203.35,63.30559401]
[1756487658866,3.57588428,203.36,203.35,63.30559401]
[1756487659071,3.57588428,203.36,203.35,62.61559401]
[1756487659072,7.15319895,203.36,203.35,62.61559401]
[1756487659281,7.15319895,203.36,203.35,63.30559401]
[1756487660806,3.57588428,203.36,203.35,7.0]
[1756487661095,18.54995627,203.36,203.35,7.0]
[1756487661413,19.23995627,203.36,203.32,41.88]
[1756487661588,11.39596665,203.33,203.32,41.88]
[1756487661779,7.15398962,203.33,203.32,41.88]
[1756487662284,7.15632913,203.33,203.32,41.88]
[1756487662684,18.55229578,203.33,203.3,0.03]
[1756487662894,18.55229578,203.32,203.31,41.84]
[1756487663199,18.55229578,203.32,203.3,0.03]
[1756487663402,18.55229578,203.31,203.3,0.03]
[1756487663782,7.15632913,203.31,203.3,0.03]
[1756487663984,18.55229578,203.31,203.3,0.03]
[1756487664395,18.55229578,203.31,203.3,7.03]
[1756487664581,18.54961647,203.31,203.3,7.03]
[1756487664900,7.15364982,203.31,203.3,7.03]
[1756487665200,7.15364982,203.31,203.3,7.72]
[1756487665698,7.15364982,203.31,203.3,32.85372223]
[1756487666002,11.39596665,203.39,203.31,0.14216157]
[1756487666198,15.66388124,203.38,203.33,13.59559401]
[1756487666496,3.90171133,203.45,203.33,13.59559401]
[1756487666497,15.66388124,203.37,203.33,13.59559401]
[1756487666684,3.57791459,203.36,203.34,41.78]
[1756487667106,3.57791459,203.35,203.34,41.78]
[1756487667306,14.97388124,203.35,203.34,41.78]
[1756487667490,3.57791459,203.35,203.34,41.78]
[1756487667705,3.57791459,203.35,203.32,13.59559401]
[1756487668013,3.57791459,203.35,203.3,11.42596665]
[1756487668014,11.39596665,203.33,203.3,41.77]
[1756487668181,11.39596665,203.31,203.3,41.77]
[1756487668488,15.66565459,203.31,203.3,41.77]
[1756487668886,14.97565459,203.31,203.3,41.77]
[1756487669080,3.57968794,203.31,203.3,46.77]
[1756487669622,11.39596665,203.34,203.3,46.77]
[1756487669816,3.57968794,203.33,203.3,46.77]
[1756487670002,3.57968794,203.32,203.31,13.59559401]
[1756487670183,3.57968794,203.35,203.31,24.99156066]
[1756487670374,3.57968794,203.34,203.32,4.9183553]
[1756487670574,12.08596665,203.37,203.33,41.74]
[1756487670809,3.58332676,203.36,203.33,41.74]
[1756487671892,14.97929341,203.36,203.33,41.74]
[1756487672203,3.58332676,203.35,203.33,41.74]
[1756487672391,3.58332676,203.35,203.34,4.91787154]
[1756487672579,3.58332676,203.38,203.34,4.91787154]
[1756487672785,3.58332676,203.37,203.34,4.91787154]
[1756487672994,14.97929341,203.37,203.33,41.74]
[1756487673310,3.58332676,203.36,203.33,41.74]
[1756487673510,3.58332676,203.35,203.33,46.65806602]
[1756487673817,3.58332676,203.34,203.33,60.25366003]
[1756487674312,3.58332676,203.36,203.33,60.25366003]
[1756487674497,3.58332676,203.35,203.33,60.25366003]
[1756487674694,3.58332676,203.34,203.33,60.25366003]
[1756487674890,0.72,203.41,203.34,13.73775558]
[1756487675093,11.39596665,203.39,203.34,13.73775558]
[1756487675290,3.59707139,203.38,203.34,13.73775558]
[1756487675491,3.59707139,203.37,203.34,13.73775558]
[1756487675790,3.24153316,203.4,203.36,13.73775558]
[1756487675999,3.60166321,203.39,203.37,41.58]
[1756487676203,3.60166321,203.38,203.37,55.17559401]
[1756487676425,3.60166321,203.38,203.37,60.09274009]
[1756487677410,3.24398213,203.4,203.37,60.23490166]
[1756487677733,11.39596665,203.45,203.4,13.59559401]
[1756487677901,3.60537541,203.44,203.41,41.52]
[1756487678096,3.60537541,203.43,203.42,13.59559401]
[1756487678296,3.60537541,203.43,203.42,18.51153147]
[1756487679201,3.60537541,203.43,203.42,18.65369304]
[1756487679402,3.60537541,203.43,203.42,23.65369304]
[1756487681131,4.32537541,203.43,203.42,5.0]
[1756487681338,11.44614878,203.43,203.42,51.41593746]
[1756487681504,7.56902131,203.43,203.42,51.41593746]
[1756487681839,11.44614878,203.43,203.42,51.41593746]
[1756487682005,14.68979468,203.43,203.42,51.41593746]
[1756487682406,7.56902131,203.43,203.42,51.41593746]
[1756487682715,4.32537541,203.43,203.42,51.41593746]
[1756487683321,4.32537541,203.43,203.42,46.5]
[1756487683540,11.44614878,203.43,203.42,51.41593746]
[1756487683736,4.32537541,203.43,203.42,46.5]
[1756487684039,3.60537541,203.43,203.42,51.41593746]
[1756487685429,3.60452645,203.43,203.42,51.41593746]
[1756487685624,3.60452645,203.43,203.42,65.15369304]
[1756487685837,3.60452645,203.43,203.42,46.41593746]
[1756487686040,3.60485003,203.43,203.42,4.91593746]
[1756487686647,3.60485003,203.43,203.42,46.41593746]
[1756487687351,4.32485003,203.43,203.42,46.41593746]
[1756487687544,3.60485003,203.43,203.42,46.41593746]
[1756487688135,4.32485003,203.43,203.42,46.41593746]
[1756487688527,3.60485003,203.43,203.42,46.41593746]
[1756487688727,3.60485003,203.43,203.42,51.41593746]
[1756487689460,4.32485003,203.43,203.42,51.41593746]
[1756487689699,4.32485003,203.43,203.42,5.0]
[1756487689828,4.32485003,203.43,203.42,46.5]
[1756487690030,4.32485003,203.43,203.42,5.0]
[1756487690222,4.32485003,203.43,203.42,51.41593746]
[1756487690422,3.60485003,203.43,203.42,51.41593746]
[1756487691047,4.32485003,203.43,203.42,51.41593746]
[1756487691935,14.68836652,203.43,203.42,46.48]
[1756487692240,14.68836652,203.43,203.42,41.48]
[1756487693332,14.68836652,203.43,203.42,45.48]
[1756487694145,19.60406233,203.43,203.42,45.48]
[1756487694447,14.68836652,203.43,203.42,45.48]
[1756487695440,6.84759315,203.43,203.42,50.39593746]
[1756487695737,7.62759315,203.43,203.42,45.48]
[1756487696046,14.75033066,203.43,203.42,45.48]
[1756487696958,10.78758754,203.43,203.42,50.39593746]
[1756487697341,10.78758754,203.43,203.42,45.48]
[1756487697534,11.50758754,203.43,203.42,45.48]
[1756487697732,10.78758754,203.43,203.42,45.48]
[1756487698464,10.78758754,203.43,203.42,50.39593746]
[1756487699648,3.66681417,203.43,203.42,50.39593746]
[1756487699836,3.66681417,203.43,203.42,8.91593746]
[1756487700037,10.78758754,203.43,203.42,8.91593746]
[1756487700245,3.66681417,203.43,203.42,22.51153147]
[1756487700435,3.66681417,203.43,203.42,23.34369304]
[1756487700632,0.06,203.5,203.43,13.73775558]
[1756487700832,0.06,203.5,203.45,13.73775558]
[1756487701052,7.18077337,203.5,203.47,13.73775558]
[1756487701255,7.18077337,203.5,203.44,0.65]
[1756487701256,7.12077337,203.48,203.44,0.65]
[1756487701429,0.06,203.5,203.39,7.120774]
[1756487701430,7.12077337,203.45,203.41,18.51177315]
[1756487701630,7.12077337,203.43,203.41,18.51177315]
[1756487701854,7.12077337,203.43,203.42,41.48]
[1756487702230,0.67,203.47,203.42,41.48]
[1756487702430,7.12077337,203.43,203.41,18.51177315]
[1756487702749,7.12077337,203.43,203.42,41.48]
[1756487703355,0.67,203.46,203.42,41.48]
[1756487703561,7.12077337,203.43,203.42,46.39593746]
[1756487703758,7.12077337,203.44,203.42,50.39593746]
[1756487704258,0.06,203.5,203.43,21.50852895]
[1756487704558,0.06,203.5,203.45,20.85852895]
[1756487704754,0.06,203.5,203.47,0.14216157]
[1756487704959,0.06,203.5,203.49,13.59559401]
[1756487705158,0.06,203.5,203.49,13.73775558]
[1756487705380,0.06,203.5,203.49,14.38775558]
[1756487705699,0.06,203.5,203.49,19.30200198]
[1756487705839,0.06,203.5,203.49,26.42277535]
[1756487706035,1e-08,203.5,203.49,26.91419999]
[1756487706455,0.06,203.55,203.53,13.59559401]
[1756487706741,7.18077337,203.55,203.54,55.19775558]
[1756487706952,7.18077337,203.55,203.49,4.9142464]
[1756487707155,7.12077337,203.53,203.5,55.19775558]
[1756487707348,7.12077337,203.53,203.52,17.59559401]
[1756487707558,7.12077337,203.53,203.52,4.0]
[1756487707754,7.12077337,203.53,203.52,45.46]
[1756487708061,7.79077337,203.53,203.52,4.0]
[1756487708264,7.79077337,203.53,203.52,45.46]
[1756487708464,7.79077337,203.53,203.43,26.65]
[1756487708646,7.79077337,203.53,203.44,41.46]
[1756487708647,7.12077337,203.47,203.44,41.46]
[1756487709071,7.12077337,203.49,203.45,13.59559401]
[1756487709370,11.38471886,203.49,203.46,41.46]
[1756487709566,11.38471886,203.52,203.48,4.91448791]
[1756487709774,11.38471886,203.51,203.49,41.46]
[1756487709977,11.38471886,203.5,203.49,41.46]
[1756487710164,12.05471886,203.5,203.49,41.44]
[1756487711454,12.05471886,203.5,203.49,45.44]
[1756487711655,20.21125344,203.5,203.39,13.59559401]
[1756487711857,20.21125344,203.5,203.41,13.59559401]
[1756487711858,11.38471886,203.44,203.41,13.59559401]
[1756487712081,11.38471886,203.45,203.41,13.59559401]
[1756487712280,11.38471886,203.46,203.43,13.59559401]
[1756487712487,44.70038183,203.6,203.43,13.59559401]
[1756487712488,0.73,203.55,203.45,25.12247444]
[1756487712895,11.38471886,203.52,203.47,0.14216157]
[1756487713077,0.73,203.55,203.47,0.14216157]
[1756487713078,11.38471886,203.53,203.49,13.59559401]
[1756487713273,0.73,203.55,203.5,4.91400491]
[1756487713274,11.38471886,203.52,203.5,4.91400491]
[1756487713533,0.73,203.55,203.45,4.91521258]
[1756487713534,12.05471886,203.51,203.45,4.91521258]
[1756487713791,11.38471886,203.47,203.46,41.44]
[1756487714680,11.38471886,203.49,203.46,45.44]
[1756487714885,0.67,203.51,203.46,45.44]
[1756487715083,8.7245182,203.49,203.46,45.44]
[1756487715257,0.67,203.51,203.46,45.44]
[1756487715463,0.73,203.55,203.48,0.14216157]
[1756487715664,11.38471886,203.49,203.47,4.91472944]
[1756487715891,11.38471886,203.49,203.4,79.6]
[1756487715892,11.38471886,203.48,203.45,4.91521258]
[1756487716185,11.38471886,203.47,203.46,41.44]
[1756487716376,0.67,203.52,203.46,41.44]
[1756487716570,11.38471886,203.48,203.46,41.44]
[1756487716882,0.67,203.52,203.46,41.44]
[1756487717063,11.38471886,203.48,203.46,41.44]
[1756487717595,11.38471886,203.48,203.47,4.91472944]
[1756487718086,3.60332187,203.48,203.47,4.91472944]
[1756487718391,15.65804073,203.48,203.46,41.44]
[1756487718591,14.98804073,203.47,203.46,41.44]
[1756487718792,14.98804073,203.47,203.46,46.354971]
[1756487718963,14.98804073,203.47,203.46,41.44]
[1756487719165,14.98804073,203.47,203.43,4.915585]
[1756487719365,11.38471886,203.44,203.42,84.51583331]
[1756487719563,4.06010417,203.53,203.42,18.65358889]
[1756487719564,3.60332187,203.43,203.42,18.65358889]
[1756487719809,0.67,203.53,203.44,0.14216157]
[1756487720084,3.60353639,203.52,203.47,0.14216157]
[1756487720461,3.60353639,203.52,203.49,13.59559401]
[1756487720662,3.60353639,203.52,203.51,13.59559401]
[1756487720908,3.60353639,203.53,203.51,55.66559401]
[1756487721081,3.60353639,203.52,203.51,55.66559401]
[1756487721396,0.06,203.54,203.53,26.14216157]
[1756487721600,0.06,203.54,203.53,35.05544216]
[1756487721898,0.06,203.54,203.53,8.91328059]
[1756487722698,0.06,203.54,203.53,9.05544216]
[1756487723703,11.44471886,203.54,203.53,8.91328059]
[1756487723995,12.11471886,203.54,203.53,45.42]
[1756487724196,12.11471886,203.54,203.53,50.33328059]
[1756487724380,0.06,203.54,203.53,64.72103617]
[1756487724579,0.06,203.54,203.53,64.07103617]
[1756487726212,11.44471886,203.54,203.53,63.9288746]
[1756487726501,11.44471886,203.54,203.53,8.91328059]
[1756487726681,11.44471886,203.54,203.53,50.31328059]
[1756487727320,0.06,203.54,203.53,63.9088746]
[1756487727503,1e-08,203.55,203.54,39.73775558]
[1756487727800,1e-08,203.55,203.54,44.65079478]
[1756487728094,1e-08,203.58,203.57,13.59559401]
[1756487728297,1e-08,203.58,203.57,54.99559401]
[1756487728474,1e-08,203.58,203.57,81.13775558]
[1756487728679,1e-08,203.58,203.57,39.73775558]
[1756487729009,1e-08,203.58,203.57,81.13775558]
[1756487729304,1e-08,203.58,203.57,93.66370595]
[1756487729505,1e-08,203.58,203.57,93.17247444]
[1756487730004,1e-08,203.58,203.57,44.50790918]
[1756487730179,1e-08,203.58,203.57,4.91231517]
[1756487730382,1e-08,203.58,203.57,22.65007075]
[1756487730680,1e-08,203.58,203.57,64.05007075]
[1756487731001,1e-08,203.58,203.57,76.13478961]
[1756487731413,1e-08,203.58,203.57,71.85527065]
[1756487731900,1e-08,203.58,203.57,71.15527065]
[1756487732108,1e-08,203.58,203.57,71.85527065]
[1756487732284,1e-08,203.59,203.58,39.73775558]
[1756487732490,1e-08,203.59,203.58,81.11775558]
[1756487732690,1e-08,203.59,203.58,88.22295548]
[1756487733094,1e-08,203.59,203.58,89.41416286]
[1756487733294,1e-08,203.59,203.58,169.01416286]
[1756487733495,1e-08,203.62,203.61,46.84295548]
[1756487733814,1e-08,203.62,203.61,81.11775558]
[1756487734016,0.70000001,203.62,203.61,4.91135013]
[1756487734383,7.80519991,203.62,203.61,46.29135013]
[1756487734579,7.80519991,203.62,203.61,4.91135013]
[1756487734800,0.70000001,203.62,203.61,46.29135013]
[1756487735222,0.70000001,203.62,203.55,26.0]
[1756487735223,0.06,203.59,203.58,4.91207387]
[1756487735419,7.1651999,203.59,203.58,50.29207387]
[1756487735787,7.8651999,203.59,203.58,45.38]
[1756487735986,7.8651999,203.59,203.54,4.91299787]
[1756487736202,7.1051999,203.55,203.54,4.91299787]
[1756487736411,7.1051999,203.56,203.54,46.29299787]
[1756487736710,7.1051999,203.58,203.54,46.29299787]
[1756487737104,0.06,203.59,203.55,13.59559401]
[1756487737321,7.8651999,203.59,203.56,41.38]
[1756487737503,0.76,203.59,203.56,41.38]
[1756487737811,7.8651999,203.59,203.56,41.38]
[1756487738601,0.06,203.59,203.56,41.38]
[1756487738918,7.1051999,203.57,203.56,54.97559401]
[1756487739092,7.1051999,203.57,203.56,58.95559401]
[1756487739417,7.8051999,203.57,203.56,45.36]
[1756487739602,7.1051999,203.57,203.56,45.36]
[1756487739800,7.1051999,203.57,203.56,4.0]
[1756487740003,7.1051999,203.57,203.56,45.36]
[1756487740413,7.8051999,203.57,203.46,0.03]
[1756487740714,7.1051999,203.51,203.48,13.59559401]
[1756487741014,7.1051999,203.51,203.48,14.29559401]
[1756487741214,7.1051999,203.51,203.5,13.59559401]
[1756487741396,7.1051999,203.51,203.5,3.0]
[1756487741603,7.1051999,203.51,203.5,44.36]
[1756487742199,7.8051999,203.51,203.5,44.36]
[1756487742398,11.40435671,203.51,203.5,41.36]
[1756487743112,10.70435671,203.51,203.5,41.36]
[1756487743306,11.40435671,203.51,203.5,41.36]
[1756487743809,18.50955661,203.51,203.46,0.03]
[1756487744012,7.1051999,203.47,203.46,0.03]
[1756487744319,10.70332527,203.47,203.46,41.39]
[1756487744614,3.59812537,203.47,203.46,41.39]
[1756487744794,26.0,203.56,203.46,41.39]
[1756487744795,7.1051999,203.48,203.46,41.39]
[1756487745400,0.7,203.51,203.46,44.39]
[1756487745596,7.1051999,203.49,203.46,44.39]
[1756487745800,7.1051999,203.47,203.46,44.39]
[1756487746315,0.7,203.52,203.46,44.39]
[1756487746512,3.59887738,203.51,203.47,13.59559401]
[1756487746700,7.1051999,203.51,203.48,0.7]
[1756487746907,0.7,203.51,203.49,41.36]
[1756487747104,4.29905004,203.5,203.46,0.03]
[1756487747410,3.59905004,203.49,203.47,41.36]
[1756487747612,3.59905004,203.48,203.47,41.36]
[1756487747815,4.29905004,203.48,203.46,0.03]
[1756487748000,4.29833,203.47,203.46,0.03]
[1756487748200,7.8051999,203.47,203.46,0.03]
[1756487748705,11.04083626,203.47,203.46,0.03]
[1756487749303,15.33007263,203.47,203.46,0.03]
[1756487749815,26.0,203.44,203.41,0.03]
[1756487750014,22.78887254,203.42,203.39,0.03]
[1756487750326,3.23563636,203.43,203.39,0.03]
[1756487750327,3.23563636,203.41,203.39,0.03]
[1756487750531,11.39443627,203.4,203.39,0.03]
[1756487750703,0.7,203.41,203.39,0.03]
[1756487750898,11.39443627,203.4,203.39,0.03]
[1756487751624,26.7177921,203.4,203.39,0.03]
[1756487751798,15.32335583,203.4,203.39,0.03]
[1756487752202,26.7177921,203.4,203.39,0.03]
[1756487755395,26.7177921,203.4,203.37,0.03]
[1756487755601,11.39443627,203.39,203.37,0.03]
[1756487755817,12.09443627,203.39,203.37,0.03]
[1756487757000,15.31065353,203.39,203.37,0.03]
[1756487757532,15.31065353,203.39,203.35,0.03]
[1756487757533,37.39443627,203.37,203.35,0.03]
[1756487757823,11.39443627,203.36,203.23,0.7]
[1756487758012,11.39443627,203.24,203.2,2.672241]
[1756487758215,11.39443627,203.21,203.17,0.7]
[1756487758521,0.7,203.27,203.2,3.0]
[1756487758923,0.7,203.26,203.2,3.0]
[1756487759130,11.39443627,203.28,203.2,3.0]
[1756487759310,0.7,203.25,203.2,3.0]
[1756487759506,11.39443627,203.21,203.2,3.0]
[1756487760123,12.09443627,203.21,203.2,3.0]
[1756487760349,12.09443627,203.21,203.13,0.2210348]
[1756487760644,11.39443627,203.14,203.13,0.2210348]
[1756487761138,12.11443627,203.14,203.06,1.16361944]
[1756487761318,22.78887254,203.07,203.06,1.16361944]
[1756487761514,0.72,203.07,203.0,1.5]
[1756487761815,11.39443627,203.02,203.0,1.5]
[1756487762016,12.11443627,203.02,203.0,1.5]
[1756487762540,11.39443627,203.02,203.0,1.5]
[1756487762738,12.11443627,203.02,202.91,0.71]
[1756487763042,26.0,203.06,202.91,0.71]
[1756487763043,3.99514345,203.07,202.91,0.71]
[1756487763212,0.72,203.06,202.96,3.0]
[1756487763535,11.39443627,202.97,202.89,0.71]
[1756487763750,0.72,202.98,202.89,0.71]
[1756487763934,11.39443627,202.9,202.86,69.95992632]
[1756487764238,11.39443627,202.92,202.86,70.66992632]
[1756487764556,26.0,203.01,202.86,70.66992632]
[1756487764557,0.72,202.97,202.87,0.71]
[1756487764720,0.72,202.99,202.88,13.59559401]
[1756487764914,11.39443627,202.91,202.88,14.30559401]
[1756487765225,20.0,203.12,202.89,26.71]
[1756487765428,7.98906729,203.22,203.03,39.59559401]
[1756487765429,0.72,203.15,203.03,39.59559401]
[1756487765736,20.0,203.26,203.03,39.59559401]
[1756487765737,0.72,203.21,203.1,13.59559401]
[1756487765933,0.72,203.21,203.07,0.14216157]
[1756487765934,11.39443627,203.12,203.07,0.14216157]
[1756487766141,11.39443627,203.12,202.99,20.0]
[1756487766142,0.72,203.11,202.95,20.0]
[1756487766343,0.72,203.11,203.01,0.71]
[1756487766529,11.394436,203.13,203.01,14.30559401]
[1756487766735,0.72,203.15,203.02,14.30559401]
[1756487766949,11.39443627,203.07,203.02,14.30559401]
[1756487767131,11.39443627,203.07,203.03,0.71]
[1756487767325,11.39443627,203.16,203.01,13.59559401]
[1756487767326,11.39443627,203.04,203.01,13.59559401]
[1756487767532,11.39443627,203.05,203.0,13.73775558]
[1756487767733,0.72,203.16,203.01,11.39443627]
[1756487767944,11.39443627,203.04,203.02,0.71]
[1756487768146,14.810792,203.2,203.04,13.59559401]
[1756487768350,24.2722959,203.38,203.03,12.10443627]
[1756487768351,0.72,203.22,203.1,0.14216157]
[1756487768536,11.39443627,203.18,203.12,11.39443627]
[1756487768739,11.39443627,203.18,203.13,0.71]
[1756487769043,11.39443627,203.14,203.1,0.71]
[1756487769262,11.39443627,203.12,203.11,0.71]
[1756487769425,11.39443627,203.12,203.08,0.71]
[1756487769625,11.39443627,203.09,203.02,0.71]
[1756487769841,11.39443627,203.05,203.02,3.71]
[1756487770050,0.72,203.15,203.03,25.70003028]
[1756487770251,0.72,203.15,203.04,0.71]
[1756487770436,11.39443627,203.16,203.04,0.71]
[1756487770638,11.39443627,203.08,203.04,0.71]
[1756487770838,11.39443627,203.06,203.04,0.71]
[1756487771165,11.39443627,203.05,203.02,3.0]
[1756487771456,17.25389156,203.05,203.02,3.71]
[1756487771657,17.25389156,203.04,203.02,3.0]
[1756487771842,0.06,203.06,203.0,0.03]
[1756487772160,17.25389156,203.01,203.0,0.03]
[1756487772456,35.22778312,203.01,203.0,0.03]
[1756487772657,0.72,203.01,203.0,0.03]
[1756487772956,17.25389156,203.02,203.0,0.03]
[1756487773268,17.25389156,203.02,202.88,0.4929022]
[1756487773269,20.0,202.96,202.86,69.95992632]
[1756487773549,26.0,202.93,202.86,69.95992632]
[1756487773856,0.72,202.92,202.86,69.95992632]
[1756487774038,17.25389156,202.88,202.86,69.95992632]
[1756487774245,17.25389156,202.87,202.86,69.95992632]
[1756487774747,17.97389156,202.87,202.86,69.95992632]
[1756487775127,17.25389156,202.87,202.86,69.95992632]
[1756487775343,61.22778312,202.87,202.86,69.95992632]
[1756487775850,61.22778312,202.87,202.74,43.88]
[1756487776053,17.25389156,202.75,202.69,0.71]
[1756487776256,17.25389156,202.7,202.65,0.71]
[1756487776562,17.25389156,202.66,202.6,1.88537317]
[1756487776757,17.25389156,202.67,202.6,1.88537317]
[1756487777053,0.72,202.71,202.6,1.17537317]
[1756487777240,0.72,202.71,202.62,0.30343444]
[1756487777429,17.25389156,202.68,202.61,17.25389156]
[1756487777624,26.0,202.73,202.63,17.25389156]
[1756487777625,17.25389156,202.7,202.63,17.25389156]
[1756487777838,0.72,202.73,202.61,13.59559401]
[1756487778164,17.25389156,202.86,202.6,1.17537317]
[1756487778165,26.0,202.8,202.6,1.17537317]
[1756487778331,20.0,202.69,202.45,18.0]
[1756487778530,0.49406365,202.68,202.47,20.0]
[1756487778746,0.49406365,202.68,202.45,18.0]
[1756487778747,0.49406365,202.68,202.49,20.69385154]
[1756487778933,0.49406365,202.77,202.59,20.0]
[1756487779144,0.49406365,202.82,202.71,26.0]
[1756487779355,17.25389156,202.77,202.72,43.73]
[1756487779531,0.49406365,202.76,202.62,14.832761]
[1756487779728,17.25389156,202.74,202.69,0.71]
[1756487779949,17.25389156,202.76,202.7,0.71]
[1756487780258,0.49406365,202.75,202.7,0.71]
[1756487780469,17.25389156,202.72,202.61,0.71]
[1756487780667,0.49406365,202.71,202.61,0.71]
[1756487780837,17.25389156,202.65,202.61,0.71]
[1756487781029,0.49406365,202.64,202.57,39.3]
[1756487781235,17.25389156,202.69,202.64,26.0]
[1756487781555,17.25389156,202.71,202.68,26.0]
[1756487781744,0.62,202.77,202.68,26.71]
[1756487781745,17.25389156,202.72,202.68,26.71]
[1756487781947,0.49406365,202.77,202.69,0.71]
[1756487782145,29.57772055,202.86,202.69,0.71]
[1756487782146,1.11406365,202.85,202.69,0.71]
[1756487782362,0.49406365,202.85,202.72,17.25389156]
[1756487782662,0.49406365,202.85,202.69,0.71]
[1756487782663,0.49406365,202.85,202.76,26.0]
[1756487782861,0.62,202.95,202.78,17.25389156]
[1756487783040,0.62,202.95,202.77,0.71]
[1756487783041,0.49406365,202.92,202.82,26.0]
[1756487783245,17.25389156,202.89,202.83,26.71]
[1756487783562,0.49406365,202.97,202.83,26.71]
[1756487783563,17.25389156,202.86,202.84,47.88]
[1756487783772,0.49406365,202.97,202.87,26.0]
[1756487783975,17.25389156,202.92,202.88,47.86]
[1756487784276,0.49406365,202.99,202.89,0.71]
[1756487784465,0.49406365,203.02,202.89,17.96389156]
[1756487784629,17.25389156,202.92,202.89,26.71]
[1756487784833,17.25389156,202.9,202.87,47.84]